fUSD/lending_fUSD_20240521
["ID","MTS","AMOUNT","RATE_DAILY","PERIOD"]
[327677982,1716309039060,-504.04,0.00032876,6]
[327677983,1716309039070,-653.3,0.00032876,6]
[327677984,1716309039079,-500.0,0.00032876,6]
[327677985,1716309039089,-500.0,0.00032876,6]
[327677986,1716309039100,-683.64,0.00032876,6]
[327677987,1716309039111,-500.0,0.00032876,6]
[327677988,1716309039121,-500.0,0.00032876,6]
[327677989,1716309039131,-531.19,0.00032876,6]
[327677990,1716309039141,-917.93,0.00032876,6]
[327677991,1716309039151,-539.29933658,0.00032876,6]
[327677992,1716309039160,-500.0,0.00032876,6]
[327677993,1716309039169,-500.0,0.00032876,6]
[327677994,1716309039178,-616.85,0.00032876,6]
[327677995,1716309039188,-500.0,0.00032876,6]
[327677996,1716309039199,-500.0,0.00032876,6]
[327677997,1716309039209,-500.0,0.00032876,6]
[327677998,1716309039220,-500.0,0.00032876,6]
[327677999,1716309039230,-730.52,0.00032876,6]
[327678000,1716309039242,-500.0,0.00032876,6]
[327678001,1716309039252,-500.0,0.00032876,6]
[327678002,1716309039263,-500.0,0.00032876,6]
[327678003,1716309039273,-500.0,0.00032876,6]
[327678004,1716309039283,-500.0,0.00032876,6]
[327678005,1716309039294,-500.0,0.00032876,6]
[327678006,1716309039305,-500.0,0.00032876,6]
[327678007,1716309039315,-500.0,0.00032876,6]
[327678008,1716309039325,-539.81533993,0.00032876,6]
[327678009,1716309039335,-1208.08,0.00032876,6]
[327678010,1716309039345,-597.79,0.00032876,6]
[327678011,1716309039356,-500.0,0.00032876,6]
[327678012,1716309039367,-1169.92,0.00032876,6]
[327678013,1716309039377,-1947.55,0.00032876,6]
[327678014,1716309039387,-500.0,0.00032876,6]
[327678015,1716309039398,-500.0,0.00032876,6]
[327678016,1716309039409,-500.0,0.00032876,6]
[327678017,1716309039421,-500.0,0.00032876,6]
[327678018,1716309039431,-500.0,0.00032876,6]
[327678019,1716309039442,-504.23,0.00032876,6]
[327678020,1716309039452,-1111.5,0.00032876,6]
[327678021,1716309039464,-500.0,0.00032876,6]
[327678022,1716309039474,-500.0,0.00032876,6]
[327678023,1716309039486,-500.0,0.00032876,6]
[327678024,1716309039496,-500.0,0.00032876,6]
[327678025,1716309039506,-500.0,0.00032876,6]
[327678026,1716309039516,-932.88,0.00032876,6]
[327678027,1716309039527,-500.0,0.00032876,6]
[327678028,1716309039537,-500.0,0.00032876,6]
[327678029,1716309039546,-500.0,0.00032876,6]
[327678030,1716309039556,-500.0,0.00032876,6]
[327678031,1716309039566,-500.0,0.00032876,6]
[327678032,1716309039576,-162.77194463,0.00032876,6]
[327678033,1716309039587,-500.0,0.00032876,6]
[327678034,1716309039597,-728.23,0.00032876,6]
[327678035,1716309039607,-637.4,0.00032876,6]
[327678036,1716309039617,-638.50031512,0.00032876,6]
[327678037,1716309039627,-874.08,0.00032876,6]
[327678038,1716309039637,-500.0,0.00032876,6]
[327678039,1716309039647,-747.71,0.00032876,6]
[327678040,1716309039657,-660.88,0.00032876,6]
[327678041,1716309039668,-500.0,0.00032876,6]
[327678042,1716309039679,-725.98,0.00032876,6]
[327678043,1716309039690,-730.48,0.00032876,6]
[327678044,1716309039700,-819.52,0.00032876,6]
[327678045,1716309039711,-500.0,0.00032876,6]
[327678046,1716309039723,-615.22,0.00032876,6]
[327678047,1716309039733,-500.0,0.00032876,6]
[327678048,1716309039744,-509.24496647,0.00032876,6]
[327678049,1716309039756,-500.0,0.00032876,6]
[327678050,1716309039766,-500.0,0.00032876,6]
[327678051,1716309039778,-582.93,0.00032876,6]
[327678052,1716309039788,-572.95036314,0.00032876,6]
[327678053,1716309039799,-611.03,0.00032876,6]
[327678054,1716309039810,-500.0,0.00032876,6]
[327678055,1716309039820,-929.11,0.00032876,6]
[327678056,1716309039832,-502.75,0.00032876,6]
[327678057,1716309039843,-512.71,0.00032876,6]
[327678058,1716309039854,-500.0,0.00032876,6]
[327678059,1716309039865,-500.0,0.00032876,6]
[327678060,1716309039875,-573.37,0.00032876,6]
[327678061,1716309039887,-500.0,0.00032876,6]
[327678062,1716309039899,-611.19,0.00032876,6]
[327678063,1716309039911,-500.0,0.00032876,6]
[327678064,1716309039923,-500.0,0.00032876,6]
[327678065,1716309039936,-500.0,0.00032876,6]
[327678066,1716309039948,-670.7,0.00032876,6]
[327678067,1716309039960,-400.0,0.00032876,6]
[327678068,1716309039975,-500.0,0.00032876,6]
[327678069,1716309039987,-500.0,0.00032876,6]
[327678070,1716309039997,-608.73,0.00032876,6]
[327678071,1716309040009,-685.13,0.00032876,6]
[327678072,1716309040020,-500.0,0.00032876,6]
[327678073,1716309040031,-585.6,0.00032876,6]
[327678074,1716309040043,-368.77786789,0.00032876,6]
[327678075,1716309040057,-500.0,0.00032876,6]
[327678076,1716309040067,-500.0,0.00032876,6]
[327678077,1716309040079,-500.0,0.00032876,6]
[327678078,1716309040090,-1193.58,0.00032876,6]
[327678079,1716309040101,-529.85,0.00032876,6]
[327678080,1716309040112,-500.0,0.00032876,6]
[327678081,1716309040123,-910.24,0.00032876,6]
[327678082,1716309040134,-201.45598941,0.00032876,6]
[327678083,1716309040145,-897.12,0.00032876,6]
[327678084,1716309040155,-1062.42,0.00032876,6]
[327678085,1716309040166,-523.65,0.00032876,6]
[327678086,1716309040177,-802.09,0.00032876,6]
[327678087,1716309040187,-705.64,0.00032876,6]
[327678088,1716309040198,-176.85,0.00032876,6]
[327678089,1716309040209,-688.9,0.00032876,6]
[327678090,1716309040221,-574.62,0.00032876,6]
[327678091,1716309040235,-500.0,0.00032876,6]
[327678092,1716309040246,-511.24,0.00032876,6]
[327678093,1716309040257,-500.0,0.00032876,6]
[327678094,1716309040271,-500.0,0.00032876,6]
[327678095,1716309040282,-500.0,0.00032876,6]
[327678096,1716309040293,-176.94819805,0.00032876,6]
[327678097,1716309040304,-864.97,0.00032876,6]
[327678098,1716309040315,-500.0,0.00032876,6]
[327678099,1716309040325,-772.69,0.00032876,6]
[327678100,1716309040335,-513.27,0.00032876,6]
[327678101,1716309040346,-500.0,0.00032876,6]
[327678102,1716309040356,-527.26,0.00032876,6]
[327678103,1716309040367,-500.0,0.00032876,6]
[327678104,1716309040378,-998.71,0.00032876,6]
[327678105,1716309040388,-488.0,0.00032876,2]
[327678106,1716309040400,-152.73,0.00032876,6]
[327678107,1716309040412,-1648.16,0.00032876,6]
[327678108,1716309040422,-500.0,0.00032876,6]
[327678109,1716309040432,-500.0,0.00032876,6]
[327678110,1716309040443,-500.0,0.00032876,6]
[327678111,1716309040457,-1402.49,0.00032876,6]
[327678112,1716309040471,-337.65,0.00032876,6]
[327678113,1716309040482,-500.0,0.00032876,6]
[327678114,1716309040493,-500.0,0.00032876,6]
[327678115,1716309040503,-1032.98,0.00032876,6]
[327678116,1716309040513,-500.0,0.00032876,6]
[327678117,1716309040523,-500.0,0.00032876,6]
[327678118,1716309040534,-500.0,0.00032876,6]
[327678119,1716309040544,-500.0,0.00032876,6]
[327678120,1716309040554,-500.0,0.00032876,6]
[327678121,1716309040566,-500.0,0.00032876,6]
[327678122,1716309040577,-500.0,0.00032876,6]
[327678123,1716309040593,-500.0,0.00032876,6]
[327678124,1716309040607,-500.0,0.00032876,2]
[327678125,1716309040621,-500.0,0.00032876,6]
[327678126,1716309040634,-500.0,0.00032876,6]
[327678127,1716309040646,-500.0,0.00032876,6]
[327678128,1716309040657,-500.0,0.00032876,6]
[327678129,1716309040667,-500.0,0.00032876,6]
[327678130,1716309040680,-855.09,0.00032876,6]
[327678131,1716309040693,-500.0,0.00032876,6]
[327678132,1716309040705,-491.03490308,0.00032876,6]
[327678133,1716309040720,-500.0,0.00032876,6]
[327678134,1716309040732,-500.0,0.00032876,6]
[327678135,1716309040744,-500.0,0.00032876,6]
[327678136,1716309040756,-500.0,0.00032876,6]
[327678137,1716309040770,-500.0,0.00032876,6]
[327678138,1716309040783,-500.0,0.00032876,6]
[327678139,1716309040795,-260.63,0.00032876,6]
[327678140,1716309040807,-1091.71,0.00032876,6]
[327678141,1716309040819,-636.56,0.00032876,6]
[327678142,1716309040832,-698.84,0.00032876,6]
[327678143,1716309040843,-500.0,0.00032876,6]
[327678144,1716309040855,-500.0,0.00032876,6]
[327678145,1716309040868,-500.0,0.00032876,6]
[327678146,1716309040880,-500.0,0.00032876,6]
[327678147,1716309040892,-500.0,0.00032876,6]
[327678148,1716309040904,-285.26564416,0.00032876,6]
[327678149,1716309040914,-211.02,0.00032876,6]
[327678150,1716309040924,-500.0,0.00032876,6]
[327678151,1716309040935,-500.0,0.00032876,6]
[327678152,1716309040946,-634.69,0.00032876,6]
[327678153,1716309040958,-529.13,0.00032876,6]
[327678154,1716309040971,-706.18,0.00032876,6]
[327678155,1716309040982,-630.84,0.00032876,6]
[327678156,1716309040995,-1812.05,0.00032876,6]
[327678157,1716309041007,-500.0,0.00032876,6]
[327678158,1716309041020,-500.0,0.00032876,6]
[327678159,1716309041032,-632.51,0.00032876,6]
[327678160,1716309041043,-500.0,0.00032876,6]
[327678161,1716309041053,-500.0,0.00032876,6]
[327678162,1716309041064,-500.0,0.00032876,6]
[327678163,1716309041074,-601.49,0.00032876,6]
[327678164,1716309041084,-500.0,0.00032876,6]
[327678165,1716309041096,-680.87,0.00032876,6]
[327678166,1716309041109,-580.8,0.00032876,6]
[327678167,1716309041121,-500.0,0.00032876,6]
[327678168,1716309041133,-737.97,0.00032876,6]
[327678169,1716309041145,-902.75,0.00032876,6]
[327678170,1716309041156,-436.48,0.00032876,6]
[327678171,1716309041166,-691.64,0.00032876,6]
[327678172,1716309041178,-500.0,0.00032876,6]
[327678173,1716309041189,-1235.64,0.00032876,6]
[327678174,1716309041201,-751.39,0.00032876,6]
[327678175,1716309041216,-1105.95,0.00032876,6]
[327678176,1716309041227,-1497.32,0.00032876,6]
[327678177,1716309041237,-511.57,0.00032876,6]
[327678178,1716309041248,-667.57,0.00032876,6]
[327678179,1716309041258,-683.79,0.00032876,6]
[327678180,1716309041270,-519.73,0.00032876,6]
[327678181,1716309041281,-500.0,0.00032876,6]
[327678182,1716309041292,-722.51,0.00032876,6]
[327678183,1716309041303,-500.0,0.00032876,6]
[327678184,1716309041315,-500.0,0.00032876,6]
[327678185,1716309041326,-756.08,0.00032876,6]
[327678186,1716309041337,-1643.07,0.00032876,6]
[327678187,1716309041348,-889.15,0.00032876,6]
[327678188,1716309041360,-769.0,0.00032876,6]
[327678189,1716309041371,-500.0,0.00032876,6]
[327678190,1716309041383,-712.17,0.00032876,6]
[327678191,1716309041395,-932.38,0.00032876,6]
[327678192,1716309041409,-500.0,0.00032876,6]
[327678193,1716309041419,-500.0,0.00032876,6]
[327678194,1716309041430,-500.0,0.00032876,2]
[327678195,1716309041447,-500.0,0.00032876,6]
[327678196,1716309041458,-1214.28,0.00032876,6]
[327678197,1716309041470,-1201.14,0.00032876,6]
[327678198,1716309041481,-1078.25,0.00032876,6]
[327678199,1716309041493,-500.0,0.00032876,6]
[327678200,1716309041504,-500.0,0.00032876,6]
[327678201,1716309041515,-785.25,0.00032876,6]
[327678202,1716309041525,-756.4,0.00032876,6]
[327678203,1716309041536,-500.0,0.00032876,6]
[327678204,1716309041546,-500.0,0.00032876,6]
[327678205,1716309041557,-932.14,0.00032876,6]
[327678206,1716309041568,-691.26,0.00032876,6]
[327678207,1716309041579,-500.0,0.00032876,6]
[327678208,1716309041590,-500.0,0.00032876,6]
[327678209,1716309041601,-765.59,0.00032876,6]
[327678210,1716309041612,-233.37972082,0.00032876,6]
[327678211,1716309041622,-500.0,0.00032876,6]
[327678212,1716309041633,-1047.87,0.00032876,6]
[327678213,1716309041644,-500.0,0.00032876,6]
[327678214,1716309041655,-500.0,0.00032876,6]
[327678215,1716309041666,-1646.95,0.00032876,6]
[327678216,1716309041677,-1016.24,0.00032876,6]
[327678217,1716309041688,-704.23,0.00032876,6]
[327678218,1716309041700,-1177.99,0.00032876,6]
[327678219,1716309041711,-443.8,0.00032876,6]
[327678220,1716309041726,-723.69,0.00032876,6]
[327678221,1716309041737,-844.03,0.00032876,6]
[327678222,1716309041748,-500.0,0.00032876,6]
[327678223,1716309041759,-500.0,0.00032876,6]
[327678224,1716309041770,-500.0,0.00032876,6]
[327678225,1716309041781,-587.91145221,0.00032876,6]
[327678226,1716309041793,-642.17,0.00032876,6]
[327678227,1716309041804,-500.0,0.00032876,6]
[327678228,1716309041816,-1037.91,0.00032876,6]
[327678229,1716309041827,-588.85,0.00032876,6]
[327678230,1716309041839,-500.0,0.00032876,6]
[327678231,1716309041850,-688.06,0.00032876,6]
[327678232,1716309041862,-500.0,0.00032876,6]
[327678233,1716309041874,-500.0,0.00032876,6]
[327678234,1716309041885,-614.12,0.00032876,6]
[327678235,1716309041896,-500.0,0.00032876,6]
[327678236,1716309041908,-547.03,0.00032876,6]
[327678237,1716309041921,-513.26,0.00032876,6]
[327678238,1716309041932,-1446.74,0.00032876,6]
[327678239,1716309041944,-6237.33,0.00032876,6]
[327678240,1716309041955,-500.0,0.00032876,6]
[327678241,1716309041969,-500.0,0.00032876,6]
[327678242,1716309041980,-2047.15,0.00032876,6]
[327678244,1716309041991,-877.09,0.00032876,6]
[327678246,1716309042002,-408.32470415,0.00032876,6]
[327678248,1716309042013,-500.0,0.00032876,6]
[327678249,1716309042025,-500.0,0.00032876,6]
[327678250,1716309042036,-500.0,0.00032876,6]
[327678251,1716309042047,-500.0,0.00032876,6]
[327678252,1716309042059,-19700.09,0.00032876,6]
[327678253,1716309042070,-500.0,0.00032876,6]
[327678254,1716309042082,-500.0,0.00032876,6]
[327678255,1716309042094,-929.52,0.00032876,6]
[327678256,1716309042106,-500.0,0.00032876,6]
[327678257,1716309042118,-299.9,0.00032876,6]
[327678258,1716309042129,-617.91,0.00032876,6]
[327678259,1716309042143,-1325.62,0.00032876,6]
[327678260,1716309042154,-500.0,0.00032876,6]
[327678261,1716309042166,-500.0,0.00032876,6]
[327678262,1716309042177,-180.50131205,0.00032876,6]
[327678263,1716309042189,-150.0,0.00032876,6]
[327678264,1716309042201,-500.0,0.00032876,6]
[327678265,1716309042213,-500.0,0.00032876,6]
[327678266,1716309042232,-500.0,0.00032876,6]
[327678267,1716309042242,-855.85,0.00032876,6]
[327678268,1716309042254,-1117.06,0.00032876,6]
[327678269,1716309042266,-1529.69,0.00032876,6]
[327678270,1716309042276,-2557.18,0.00032876,6]
[327678271,1716309042287,-1142.08,0.00032876,6]
[327678273,1716309042299,-5030.61,0.00032876,6]
[327678275,1716309042310,-500.0,0.00032876,6]
[327678276,1716309042321,-1314.99,0.00032876,6]
[327678277,1716309042331,-500.0,0.00032876,6]
[327678278,1716309042341,-690.54,0.00032876,6]
[327678279,1716309042353,-508.5906064,0.00032876,6]
[327678280,1716309042365,-1465.88,0.00032876,6]
[327678281,1716309042376,-1041.16,0.00032876,6]
[327678282,1716309042389,-500.0,0.00032876,6]
[327678283,1716309042406,-207.19,0.00032876,6]
[327678284,1716309042418,-3408.72,0.00032876,6]
[327678285,1716309042429,-500.0,0.00032876,6]
[327678286,1716309042441,-500.0,0.00032876,6]
[327678287,1716309042452,-500.0,0.00032876,6]
[327678288,1716309042464,-3225.04,0.00032876,6]
[327678289,1716309042475,-500.0,0.00032876,6]
[327678290,1716309042485,-500.0,0.00032876,6]
[327678292,1716309042496,-787.06,0.00032876,6]
[327678293,1716309042507,-500.0,0.00032876,6]
[327678294,1716309042518,-500.0,0.00032876,6]
[327678295,1716309042529,-1277.71,0.00032876,6]
[327678296,1716309042539,-411.34929263,0.00032876,6]
[327678297,1716309042550,-3224.04,0.00032876,6]
[327678298,1716309042561,-1680.23,0.00032876,6]
[327678299,1716309042572,-57007.44,0.00032876,6]
[327678300,1716309042583,-500.0,0.00032876,6]
[327678301,1716309042593,-8022.24,0.00032876,6]
[327678302,1716309042604,-500.0,0.00032876,6]
[327678303,1716309042614,-500.0,0.00032876,6]
[327678304,1716309042626,-500.0,0.00032876,6]
[327678306,1716309042637,-500.0,0.00032876,6]
[327678307,1716309042648,-1208.05,0.00032876,6]
[327678308,1716309042659,-1802.93,0.00032876,6]
[327678309,1716309042670,-4662.33,0.00032876,6]
[327678310,1716309042680,-500.0,0.00032876,6]
[327678311,1716309042691,-1291.57,0.00032876,6]
[327678312,1716309042702,-975.88,0.00032876,6]
[327678315,1716309042713,-306.99737053,0.00032876,6]
[327678319,1716309042725,-500.0,0.00032876,6]
[327678321,1716309042736,-17154.57967722,0.00032876,6]
[327678325,1716309042777,-5155.42032278,0.00032876,6]
[327678326,1716309042788,-2556.78,0.00032876,6]
[327678327,1716309042798,-2158.79,0.00032876,6]
[327678328,1716309042810,-500.0,0.00032876,6]
[327678329,1716309042821,-500.0,0.00032876,6]
[327678330,1716309042831,-500.0,0.00032876,6]
[327678332,1716309042843,-500.0,0.00032876,6]
[327678333,1716309042854,-148.81233613,0.00032876,6]
[327678334,1716309042868,-1137.38766387,0.00032876,6]
[327678335,1716309042878,-500.0,0.00032876,6]
[327678336,1716309042889,-929.47,0.00032876,6]
[327678337,1716309042900,-500.0,0.00032876,6]
[327678338,1716309042910,-5459.04,0.00032876,6]
[327678339,1716309042921,-500.0,0.00032876,6]
[327678340,1716309042932,-1032.86,0.00032876,6]
[327678341,1716309042943,-2026.08,0.00032876,6]
[327678342,1716309042954,-500.0,0.00032876,6]
[327678343,1716309042967,-1102.36,0.00032876,6]
[327678344,1716309042976,-2045.87,0.00032876,6]
[327678345,1716309042986,-4453.44,0.00032876,6]
[327678346,1716309042996,-500.0,0.00032876,6]
[327678347,1716309043007,-500.0,0.00032876,6]
[327678348,1716309043017,-500.0,0.00032876,6]
[327678349,1716309043029,-513.40873933,0.00032876,6]
[327678350,1716309043039,-6323.83,0.00032876,6]
[327678351,1716309043050,-500.0,0.00032876,6]
[327678352,1716309043062,-500.0,0.00032876,6]
[327678353,1716309043072,-799.3,0.00032876,6]
[327678354,1716309043083,-2702.01,0.00032876,6]
[327678355,1716309043094,-500.0,0.00032876,6]
[327678356,1716309043105,-500.0,0.00032876,6]
[327678357,1716309043116,-857.71,0.00032876,6]
[327678358,1716309043127,-500.0,0.00032876,6]
[327678359,1716309043138,-14583.99,0.00032876,6]
[327678360,1716309043148,-1081.32,0.00032876,6]
[327678361,1716309043159,-500.0,0.00032876,6]
[327678362,1716309043170,-500.0,0.00032876,6]
[327678363,1716309043180,-3035.24,0.00032876,6]
[327678364,1716309043191,-500.0,0.00032876,6]
[327678365,1716309043202,-500.0,0.00032876,6]
[327678366,1716309043213,-514.98235792,0.00032876,6]
[327678367,1716309043227,-2029.12,0.00032876,6]
[327678368,1716309043238,-1886.12,0.00032876,6]
[327678369,1716309043249,-500.0,0.00032876,6]
[327678372,1716309043270,-678.65,0.00032876,6]
[327678373,1716309043286,-500.0,0.00032876,6]
[327678374,1716309043299,-1006.99,0.00032876,6]
[327678376,1716309043313,-5794.76,0.00032876,6]
[327678378,1716309043327,-1355.61,0.00032876,6]
[327678380,1716309043340,-500.0,0.00032876,6]
[327678382,1716309043353,-500.0,0.00032876,6]
[327678385,1716309043366,-1132.16,0.00032876,6]
[327678387,1716309043379,-500.0,0.00032876,6]
[327678389,1716309043392,-500.0,0.00032876,6]
[327678392,1716309043411,-500.0,0.00032876,6]
[327678395,1716309043423,-934.32,0.00032876,6]
[327678397,1716309043436,-950.14,0.00032876,6]
[327678399,1716309043450,-1677.03,0.00032876,6]
[327678401,1716309043462,-500.0,0.00032876,6]
[327678403,1716309043478,-500.0,0.00032876,6]
[327678406,1716309043491,-2802.78,0.00032876,6]
[327678408,1716309043504,-1064.92,0.00032876,6]
[327678410,1716309043516,-500.0,0.00032876,6]
[327678411,1716309043527,-3405.64,0.00032876,6]
[327678412,1716309043539,-500.0,0.00032876,6]
[327678413,1716309043551,-500.0,0.00032876,6]
[327678414,1716309043562,-920.56,0.00032876,6]
[327678415,1716309043574,-1406.67,0.00032876,6]
[327678416,1716309043586,-500.0,0.00032876,6]
[327678417,1716309043597,-500.0,0.00032876,6]
[327678418,1716309043609,-2064.39,0.00032876,6]
[327678419,1716309043621,-500.0,0.00032876,6]
[327678420,1716309043633,-500.0,0.00032876,6]
[327678421,1716309043645,-500.0,0.00032876,6]
[327678422,1716309043657,-500.0,0.00032876,6]
[327678423,1716309043669,-742.6,0.00032876,6]
[327678424,1716309043681,-500.0,0.00032876,6]
[327678425,1716309043692,-1169.73,0.00032876,6]
[327678426,1716309043702,-837.25,0.00032876,6]
[327678427,1716309043714,-1541.07,0.00032876,6]
[327678428,1716309043728,-1967.62,0.00032876,6]
[327678429,1716309043740,-640.75,0.00032876,6]
[327678430,1716309043751,-233.05038527,0.00032876,6]
[327678431,1716309043763,-500.0,0.00032876,6]
[327678432,1716309043775,-790.99,0.00032876,6]
[327678433,1716309043786,-817.99,0.00032876,6]
[327678434,1716309043797,-500.0,0.00032876,6]
[327678435,1716309044231,-500.0,0.00032876,6]
[327678436,1716309044260,-708.09,0.00032876,6]
[327678437,1716309044279,-1163.39,0.00032876,6]
[327678438,1716309044295,-500.0,0.00032876,6]
[327678439,1716309044304,-500.0,0.00032876,6]
[327678440,1716309044314,-1611.46,0.00032876,6]
[327678441,1716309044324,-500.0,0.00032876,6]
[327678442,1716309044333,-883.78,0.00032876,6]
[327678443,1716309044343,-523.67,0.00032876,6]
[327678444,1716309044354,-1334.33,0.00032876,6]
[327678445,1716309044363,-500.0,0.00032876,6]
[327678446,1716309044372,-9221.47,0.00032876,6]
[327678447,1716309044381,-1389.4,0.00032876,6]
[327678448,1716309044390,-500.0,0.00032876,6]
[327678449,1716309044401,-3635.85354672,0.00032876,6]
[327678450,1716309044420,-18409.81885516,0.00032876,6]
[327678451,1716309044432,-997.92590391,0.00032876,6]
[327678452,1716309044443,-301.52429435,0.00032876,6]
[327678453,1716309044463,-16176.54739986,0.00032876,6]
[327678454,1716309044477,-500.0,0.00032876,6]
[327678455,1716309044488,-500.0,0.00032876,6]
[327678456,1716309044497,-500.0,0.00032876,6]
[327678457,1716309044508,-1401.21,0.00032876,6]
[327678458,1716309044517,-500.0,0.00032876,6]
[327678459,1716309044526,-500.0,0.00032876,6]
[327678460,1716309044536,-1016.17,0.00032876,6]
[327678461,1716309044545,-500.0,0.00032876,6]
[327678462,1716309044555,-500.0,0.00032876,6]
[327678463,1716309044564,-500.0,0.00032876,6]
[327678464,1716309044574,-831.05,0.00032876,6]
[327678465,1716309044584,-543.00686333,0.00032876,6]
[327678466,1716309044594,-500.0,0.00032876,6]
[327678467,1716309044604,-500.0,0.00032876,6]
[327678468,1716309044614,-500.0,0.00032876,6]
[327678469,1716309044623,-823.75,0.00032876,6]
[327678470,1716309044632,-500.0,0.00032876,6]
[327678471,1716309044642,-5848.49,0.00032876,6]
[327678472,1716309044652,-346.2,0.00032876,6]
[327678473,1716309044663,-500.0,0.00032876,6]
[327678474,1716309044673,-500.0,0.00032876,6]
[327678475,1716309044682,-500.0,0.00032876,6]
[327678476,1716309044692,-509.16,0.00032876,6]
[327678477,1716309044701,-500.0,0.00032876,6]
[327678478,1716309044710,-1484.0,0.00032876,6]
[327678479,1716309044722,-500.0,0.00032876,6]
[327678480,1716309044731,-1067.55,0.00032876,6]
[327678481,1716309044740,-500.0,0.00032876,6]
[327678482,1716309044749,-4130.26,0.00032876,6]
[327678483,1716309044759,-1131.67,0.00032876,6]
[327678484,1716309044769,-510.81,0.00032876,6]
[327678485,1716309044780,-9511.22,0.00032876,6]
[327678486,1716309044789,-500.0,0.00032876,6]
[327678487,1716309044799,-500.0,0.00032876,6]
[327678488,1716309044810,-505.03974552,0.00032876,6]
[327678489,1716309044819,-613.91,0.00032876,6]
[327678490,1716309044829,-1295.48,0.00032876,6]
[327678491,1716309044838,-519.57474744,0.00032876,6]
[327678492,1716309044848,-1945.58,0.00032876,6]
[327678493,1716309044858,-500.0,0.00032876,6]
[327678494,1716309044867,-500.0,0.00032876,6]
[327678495,1716309044876,-1058.46,0.00032876,6]
[327678496,1716309044886,-1377.92,0.00032876,6]
[327678497,1716309044896,-500.0,0.00032876,6]
[327678498,1716309044905,-812.91,0.00032876,6]
[327678499,1716309044914,-1325.46,0.00032876,6]
[327678500,1716309044924,-500.0,0.00032876,6]
[327678501,1716309044933,-500.0,0.00032876,6]
[327678502,1716309044942,-500.0,0.00032876,6]
[327678503,1716309044951,-4937.41,0.00032876,6]
[327678504,1716309044960,-1114.26,0.00032876,6]
[327678505,1716309044973,-683.66,0.00032876,6]
[327678506,1716309044982,-500.0,0.00032876,6]
[327678507,1716309044992,-2629.43,0.00032876,6]
[327678508,1716309045001,-524.63,0.00032876,6]
[327678509,1716309045011,-500.0,0.00032876,6]
[327678510,1716309045020,-500.0,0.00032876,6]
[327678511,1716309045029,-1565.62,0.00032876,6]
[327678512,1716309045039,-500.0,0.00032876,6]
[327678513,1716309045053,-500.0,0.00032876,6]
[327678514,1716309045064,-500.0,0.00032876,6]
[327678515,1716309045073,-500.0,0.00032876,6]
[327678516,1716309045083,-302.45223631,0.00032876,6]
[327678517,1716309045092,-744.63,0.00032876,6]
[327678518,1716309045101,-518.11,0.00032876,6]
[327678519,1716309045111,-3660.53,0.00032876,6]
[327678520,1716309045121,-1522.3,0.00032876,6]